bitfinex/quotes_ETHUSD_20251021
["timestamp","ask_amount","ask_price","bid_price","bid_amount"]
[1761058367083,0.47290995,3967.0,3966.2,3.494]
[1761058367373,2.52090305,3966.9,3966.2,3.494]
[1761058367559,0.54830365,3966.9,3966.2,3.494]
[1761058367876,2.52074683,3967.1,3966.2,6.01529217]
[1761058368070,0.4414,3967.4,3966.2,3.494]
[1761058368273,2.52077962,3967.1,3966.2,3.494]
[1761058368474,0.001,3967.7,3966.2,3.494]
[1761058368678,0.001,3967.7,3967.3,0.1207]
[1761058368857,2.51988887,3968.5,3968.0,0.0002]
[1761058369051,3.0902811,3968.5,3968.1,3.494]
[1761058369253,0.2229,3968.7,3968.1,3.494]
[1761058369577,0.2229,3968.7,3968.1,3.6138]
[1761058370282,0.2229,3968.7,3968.0,0.0002]
[1761058370283,2.52009777,3968.1,3968.0,0.0002]
[1761058370467,0.4414,3968.6,3968.0,3.4922]
[1761058371074,2.74262193,3968.7,3968.0,3.4922]
[1761058371278,2.51979483,3968.6,3968.0,3.4922]
[1761058371479,0.2229,3968.7,3968.0,3.4922]
[1761058371644,0.2267,3969.2,3968.1,2.6398855]
[1761058371645,2.51947317,3969.1,3968.1,2.6398855]
[1761058371993,0.2267,3969.2,3968.1,0.5533]
[1761058372193,2.74614969,3969.2,3968.2,2.51998229]
[1761058372396,4.24643877,3970.8,3968.2,2.51998229]
[1761058372397,0.4414,3969.8,3968.2,0.4335]
[1761058372547,0.4414,3969.8,3968.7,2.51967233]
[1761058372548,2.96047311,3969.8,3968.7,2.51967233]
[1761058372852,0.1256,3969.6,3969.0,2.51952463]
[1761058373055,0.2174,3970.0,3968.8,3.9245]
[1761058373268,0.1256,3969.9,3969.2,0.1256]
[1761058373573,0.1256,3969.9,3969.2,2.64498371]
[1761058373774,0.2174,3970.0,3969.1,2.51941166]
[1761058374078,0.2174,3970.0,3969.5,0.1256]
[1761058374593,2.51825736,3971.0,3969.6,6.43519582]
[1761058374775,0.4484,3971.0,3969.6,6.43519582]
[1761058374974,0.4484,3971.0,3969.6,3.9161]
[1761058375274,2.5184537,3970.7,3969.6,6.43523423]
[1761058375596,2.51877178,3970.2,3969.2,0.54724903]
[1761058375795,0.4484,3970.9,3969.7,3.485]
[1761058376091,2.5185712,3970.6,3969.8,1.617]
[1761058376248,2.51857988,3970.5,3969.8,1.617]
[1761058376644,0.4484,3970.9,3969.8,1.617]
[1761058376845,0.003,3971.1,3970.0,2.51889168]
[1761058377080,0.003,3971.1,3970.5,2.51853653]
[1761058377244,0.003,3971.1,3970.6,3.484]
[1761058377448,0.003,3971.1,3970.7,0.1552]
[1761058378175,2.51826509,3971.0,3970.6,3.484]
[1761058378343,2.51826349,3971.0,3970.6,3.484]
[1761058378547,2.52120235,3971.1,3970.6,3.484]
[1761058378744,0.003,3971.1,3970.6,3.484]
[1761058380192,0.003,3971.1,3970.6,7.04737902]
[1761058380370,0.003,3971.1,3970.6,7.04737881]
[1761058380572,0.003,3971.1,3970.7,0.4291]
[1761058380881,0.003,3971.1,3970.9,2.51832078]
[1761058381079,0.004,3971.1,3971.0,2.51825736]
[1761058381407,0.004,3971.1,3971.0,4.7169087]
[1761058381677,0.004,3971.1,3971.0,5.1460087]
[1761058382257,0.004,3971.1,3971.0,2.62775134]
[1761058382986,0.003,3971.5,3971.4,2.51800372]
[1761058383185,0.4484,3973.4,3971.4,3.98688]
[1761058383347,2.51669008,3973.5,3971.9,19.03915602]
[1761058383553,2.51673369,3973.5,3972.0,5.99762312]
[1761058383883,3.18675985,3973.6,3972.6,2.51722609]
[1761058384095,0.29997522,3973.8,3973.5,0.1552]
[1761058384263,0.29997522,3973.8,3973.7,2.51654629]
[1761058384587,0.29997522,3973.8,3973.7,3.93808464]
[1761058385265,0.29997522,3973.8,3973.7,0.86683835]
[1761058385465,0.29997522,3973.8,3973.6,3.48]
[1761058385776,0.29997522,3973.8,3973.7,3.479]
[1761058385979,2.81645818,3973.8,3973.7,3.479]
[1761058386178,2.51681379,3973.3,3972.5,0.1552]
[1761058386351,2.51681379,3973.3,3972.1,1.728]
[1761058386352,2.5169065,3973.2,3972.6,3.479]
[1761058386693,2.51705447,3972.9,3972.7,3.479]
[1761058386862,0.4484,3973.3,3972.7,3.479]
[1761058387063,2.51702953,3973.0,3972.7,3.479]
[1761058387379,2.51700837,3973.0,3972.7,3.479]
[1761058387586,2.51687023,3973.2,3972.7,3.479]
[1761058387770,0.4484,3973.1,3972.7,3.479]
[1761058387969,0.2217,3972.8,3972.7,3.479]
[1761058388494,2.51682676,3973.3,3972.7,3.479]
[1761058388652,0.4484,3973.7,3972.7,3.479]
[1761058388855,2.51654629,3973.7,3972.7,3.479]
[1761058389100,0.29997522,3973.8,3972.7,3.8269]
[1761058389349,0.74837522,3973.8,3972.7,3.8269]
[1761058389644,2.51666166,3973.6,3972.7,3.8269]
[1761058389841,2.51667555,3973.5,3972.7,3.8269]
[1761058390026,3.26486785,3973.8,3972.7,3.8269]
[1761058390027,2.51662155,3973.6,3972.7,3.8269]
[1761058390447,0.74837522,3973.8,3972.8,0.63441398]
[1761058390745,2.81646683,3973.8,3972.8,3.1515194]
[1761058390894,0.29997522,3973.8,3972.8,1.06351398]
[1761058391100,0.29997522,3973.8,3973.1,2.51690452]
[1761058391333,2.8165089,3973.8,3973.2,3.6332]
[1761058391646,2.8165089,3973.8,3973.2,3.478]
[1761058391647,2.81647084,3973.8,3973.2,3.478]
[1761058391798,0.03145682,3973.7,3973.2,3.478]
[1761058391993,2.5166734,3973.5,3973.2,3.478]
[1761058392227,2.51679963,3973.3,3973.2,3.478]
[1761058392545,3.2649053,3973.8,3973.2,3.478]
[1761058392854,0.29997522,3973.8,3973.2,3.478]
[1761058393005,0.0261,3973.9,3973.7,19.03915602]
[1761058393202,0.0261,3973.9,3973.8,6.27898296]
[1761058393401,0.0261,3973.9,3973.8,6.78586296]
[1761058394138,0.3,3975.5,3973.9,0.75852196]
[1761058394297,0.3,3975.5,3974.5,1.728]
[1761058394503,0.3,3975.5,3974.1,0.50688]
[1761058394504,0.3,3975.5,3975.4,0.1302]
[1761058394712,0.13853828,3975.5,3975.4,3.477]
[1761058394923,0.58693828,3975.5,3975.4,3.477]
[1761058395129,0.13853828,3975.5,3975.4,3.477]
[1761058395341,0.31533984,3977.0,3975.5,0.2855]
[1761058395644,0.31533984,3977.0,3975.4,3.477]
[1761058395645,0.2217,3976.4,3975.4,3.477]
[1761058395803,2.54634124,3976.3,3975.4,3.477]
[1761058396004,0.2217,3976.4,3975.4,3.477]
[1761058396005,2.51496403,3976.2,3975.4,3.477]
[1761058396203,0.2217,3976.4,3975.4,3.477]
[1761058396884,2.51540686,3975.5,3975.4,3.477]
[1761058397459,2.96380686,3975.5,3975.4,3.477]
[1761058397733,0.55105587,3975.5,3975.0,3.476]
[1761058397969,0.4484,3976.1,3975.1,3.476]
[1761058397970,2.51509054,3976.0,3975.1,3.476]
[1761058398177,0.4484,3976.6,3975.2,3.476]
[1761058398382,0.6558,3976.4,3975.3,3.476]
[1761058398789,0.2217,3976.4,3975.3,3.476]
[1761058399086,2.51510925,3976.0,3975.3,3.476]
[1761058399282,0.2217,3976.4,3975.4,0.37615]
[1761058399448,0.2139,3976.7,3975.4,0.37615]
[1761058399653,2.5151571,3975.9,3975.4,0.37615]
[1761058400186,0.4341,3976.6,3975.4,0.37615]
[1761058400427,2.51534167,3975.7,3975.3,3.476]
[1761058400589,0.4341,3976.5,3975.3,3.476]
[1761058400793,0.2139,3976.4,3975.3,3.476]
[1761058401297,2.51456617,3976.9,3975.5,2.51539087]
[1761058401510,2.51452614,3976.9,3975.6,0.67837709]
[1761058401723,2.51476921,3976.6,3975.6,0.67837709]
[1761058401923,0.001,3976.4,3975.6,0.67837709]
[1761058402102,2.51584561,3976.4,3975.6,0.67837709]
[1761058402320,0.4351,3976.4,3975.6,0.67837709]
[1761058402627,0.4351,3976.4,3975.3,3.476]
[1761058402628,2.51516079,3975.9,3975.3,3.476]
[1761058402785,2.51496403,3976.2,3975.3,3.476]
[1761058402992,0.4351,3976.4,3975.3,3.476]
[1761058403299,0.31533984,3977.0,3976.3,0.1552]
[1761058403541,0.31533984,3977.0,3976.4,3.475]
[1761058403747,0.31533984,3977.0,3976.5,0.8699]
[1761058403924,0.31533984,3977.0,3976.9,2.51452136]
[1761058404155,0.31533984,3977.0,3976.7,2.5145951]
[1761058404328,0.31533984,3977.0,3976.7,0.2855]
[1761058404645,0.31533984,3977.0,3976.8,0.2855]
[1761058405365,0.2176,3976.9,3976.0,0.1552]
[1761058405571,0.0314323,3976.8,3976.2,3.475]
[1761058405726,2.51477429,3976.5,3976.4,0.75567416]
[1761058405931,0.2176,3976.9,3976.2,0.368]
[1761058406160,0.31533984,3977.0,3976.2,0.368]
[1761058406527,0.03143151,3976.9,3976.2,0.368]
[1761058406727,0.31533984,3977.0,3976.2,0.368]
[1761058406955,2.51452136,3976.9,3976.8,0.01]
[1761058407158,0.31533984,3977.0,3976.8,0.01]
[1761058407547,2.51452136,3976.9,3976.8,0.01]
[1761058407768,2.79750748,3976.9,3976.8,0.01]
[1761058407940,3.22590748,3976.9,3976.8,0.01]
[1761058408450,2.5141581,3977.5,3976.8,0.01]
[1761058408649,2.51452136,3976.9,3976.8,0.01]
[1761058409027,0.2176,3977.2,3976.8,0.01]
[1761058409229,2.51452136,3976.9,3976.8,0.01]
[1761058409933,2.54595287,3976.9,3976.8,0.01]
[1761058410127,2.51452136,3976.9,3976.8,0.01]
[1761058410871,2.54595287,3976.9,3976.8,0.01]
[1761058411041,2.51452136,3976.9,3976.8,0.01]
[1761058411233,3.06649477,3976.9,3976.8,0.01]
[1761058411974,0.2176,3977.2,3976.8,0.01]
[1761058412171,2.51452136,3976.9,3976.8,0.01]
[1761058412835,0.2176,3977.2,3976.8,0.01]
[1761058413064,0.2176,3977.7,3976.8,0.01]
[1761058413277,2.51452136,3976.9,3976.8,0.01]
[1761058413636,0.03143151,3976.9,3976.8,0.01]
[1761058413830,2.51442675,3977.1,3976.8,0.01]
[1761058414080,2.73162833,3977.7,3976.8,0.01]
[1761058414081,2.51407884,3977.6,3976.8,0.01]
[1761058414294,0.2176,3977.7,3976.8,0.01]
[1761058414436,0.6,3978.2,3976.8,0.01]
[1761058414736,0.6,3978.2,3976.9,0.4488]
[1761058414936,2.51412584,3977.6,3976.9,0.80588]
[1761058415170,2.5141519,3977.5,3976.9,0.35708]
[1761058415537,2.51401563,3977.7,3976.8,3.122]
[1761058415741,2.5142558,3977.4,3976.8,3.122]
[1761058415943,0.53806188,3977.3,3977.0,0.1256]
[1761058416188,0.53806188,3977.2,3977.0,0.1256]
[1761058416340,0.66676633,3977.8,3976.9,0.233]
[1761058416539,0.53813041,3977.7,3976.9,0.233]
[1761058416837,0.53813041,3977.6,3976.9,1.06218]
[1761058417037,0.56955718,3977.5,3976.8,0.01]
[1761058417273,2.51452136,3976.9,3976.8,0.01]
[1761058417476,3.05265177,3976.9,3976.8,0.01]
[1761058418141,3.08408328,3976.9,3976.8,0.01]
[1761058418337,4.4026974,3976.9,3976.8,0.01]
[1761058418548,5.09441086,3976.9,3976.8,0.01]
[1761058418773,3.74436523,3976.9,3976.8,0.01]
[1761058419373,2.51501888,3976.2,3975.8,3.473]
[1761058419596,2.51458459,3976.8,3975.8,3.473]
[1761058419597,3.05317867,3976.1,3975.8,3.473]
[1761058419782,0.53813041,3976.0,3975.8,3.473]
[1761058421309,0.53982494,3976.7,3975.9,0.4488]
[1761058421608,1.34859669,3977.4,3975.9,0.4488]
[1761058421609,0.53982494,3976.6,3976.0,0.67842671]
[1761058421770,0.67429834,3977.1,3976.1,2.51499187]
[1761058421971,0.54021198,3977.0,3976.1,0.6818]
[1761058422176,0.54021198,3976.9,3976.3,2.51485557]
[1761058422397,0.54021198,3976.8,3976.2,2.96373531]
[1761058422624,0.67429834,3977.1,3976.3,0.3875162]
[1761058422625,0.54021198,3976.7,3976.3,0.3875162]
[1761058422800,0.67429834,3977.2,3976.3,0.4488]
[1761058422973,0.54075642,3977.1,3976.3,0.4488]
[1761058423171,0.54075642,3977.0,3976.3,0.4488]
[1761058423409,2.51464157,3976.8,3976.1,0.233]
[1761058423720,0.54075642,3976.7,3976.4,3.473]
[1761058423935,0.67429834,3977.2,3976.5,0.39218]
[1761058424074,0.54114384,3977.1,3976.5,0.84098]
[1761058424274,0.54114384,3977.0,3976.5,0.84098]
[1761058424577,0.54114384,3976.9,3976.5,0.39218]
[1761058424806,0.54114384,3976.8,3976.4,3.473]
[1761058425031,3.05583656,3976.7,3976.4,3.473]
[1761058425329,2.51477429,3976.5,3975.8,3.473]
[1761058425509,1.47164218,3976.6,3975.9,0.4488]
[1761058425510,0.54114384,3976.4,3975.9,0.4488]
[1761058425723,0.54114384,3976.3,3975.9,0.4488]
[1761058425875,0.54114384,3976.2,3976.0,0.39218]
[1761058426076,0.6769608,3976.7,3976.0,0.39218]
[1761058426276,0.54150519,3976.6,3976.3,0.1256]
[1761058426479,0.54150519,3976.5,3976.3,0.1256]
[1761058426696,0.6769608,3977.0,3976.2,0.4488]
[1761058426895,0.89906446,3977.2,3976.3,2.87379129]
[1761058426896,0.54148665,3976.9,3976.3,2.87379129]
[1761058427095,0.54148665,3976.8,3976.3,0.35889892]
[1761058427331,0.6769608,3977.2,3976.3,0.35889892]
[1761058427531,0.54159099,3977.1,3976.5,2.51476228]
[1761058427737,0.54159099,3977.0,3976.7,2.51464472]
[1761058427893,0.54159099,3976.9,3976.7,2.51464472]
[1761058428097,0.6769608,3977.5,3976.6,3.9218]
[1761058428424,0.5415571,3977.4,3976.7,0.4488]
[1761058428626,0.5415571,3977.3,3976.7,0.4488]
[1761058428802,0.5415571,3977.2,3976.7,1.09246219]
[1761058429010,0.5415571,3977.1,3975.3,0.50888]
[1761058429205,0.5415571,3977.0,3976.1,3.706]
[1761058429409,0.03142914,3977.2,3976.1,3.706]
[1761058429410,0.5415571,3976.9,3976.1,3.706]
[1761058429603,2.51444686,3977.1,3976.1,3.706]
[1761058429604,3.0561458,3976.8,3976.1,3.706]
[1761058429934,3.05622408,3976.7,3976.1,3.473]
[1761058430129,0.5415571,3976.6,3976.1,3.706]
[1761058430353,0.5415571,3976.5,3976.1,3.706]
[1761058430533,2.51459644,3976.8,3976.1,3.706]
[1761058430723,0.5418207,3976.7,3976.1,3.706]
[1761058431045,0.5418207,3976.6,3976.1,4.3281209]
[1761058431204,2.51447414,3977.0,3976.1,4.3281209]
[1761058431406,0.54182549,3976.9,3976.1,4.3281209]
[1761058431607,0.54182549,3976.8,3976.1,4.3281209]
[1761058431808,0.6769608,3977.6,3976.4,0.50688]
[1761058432008,3.19047912,3978.5,3977.0,2.51439938]
[1761058432330,1.21863355,3978.1,3977.1,3.472]
[1761058432507,2.51397086,3977.8,3977.1,3.472]
[1761058432707,0.54167275,3977.7,3977.1,3.472]
[1761058432918,3.19074737,3978.1,3977.1,3.472]
[1761058433120,0.54158271,3978.0,3977.3,2.51426847]
[1761058433333,2.51352483,3978.5,3977.4,2.51420328]
[1761058433635,2.51352483,3978.5,3977.2,0.4488]
[1761058433636,2.51352483,3978.5,3977.3,2.51425655]
[1761058433810,2.51352483,3978.5,3977.4,2.51419429]
[1761058434012,2.51359285,3978.4,3977.2,0.4488]
[1761058434223,2.51365966,3978.3,3977.3,3.15777927]
[1761058434413,2.51352763,3978.5,3977.4,2.5141919]
[1761058434615,0.2176,3978.6,3977.4,2.5141919]
[1761058434811,2.51351048,3978.5,3977.4,2.5141919]
[1761058435029,0.3,3978.8,3978.1,2.74346285]
[1761058435340,0.3,3978.8,3978.1,0.2297]
[1761058435642,0.3,3978.8,3978.1,6.68896285]
[1761058435846,0.3,3978.8,3978.1,7.6343872]
[1761058436022,0.3,3978.8,3978.1,7.8877872]
[1761058436218,0.3,3978.8,3978.1,9.8692672]
[1761058436437,0.3,3978.8,3978.1,10.1226672]
[1761058436933,0.3,3978.8,3978.1,10.2482672]
[1761058437453,0.3,3978.8,3978.1,2.90312435]
[1761058437655,0.3,3978.8,3978.1,5.9032]
[1761058437952,0.3,3978.8,3978.1,3.472]
[1761058438351,0.3,3978.8,3977.5,0.4735]
[1761058438541,2.51326111,3978.9,3977.8,2.51394808]
[1761058438760,0.00336451,3979.0,3977.6,3.9455]
[1761058438926,2.51655995,3979.0,3977.8,2.51389984]
[1761058439123,2.51655995,3979.0,3977.7,0.86805]
[1761058439124,0.00336451,3979.0,3977.7,0.86805]
[1761058439456,0.00336451,3979.0,3977.9,2.51388923]
[1761058439755,2.51657221,3979.0,3977.9,2.51388923]
[1761058439959,0.00336451,3979.0,3978.1,2.51376285]
[1761058440255,0.00336451,3979.0,3978.1,3.471]
[1761058440421,0.00336451,3979.0,3978.1,6.88198894]
[1761058440622,0.00336451,3979.0,3978.1,7.35548894]
[1761058440850,0.00336451,3979.0,3978.1,7.86236894]
[1761058441044,0.00336451,3979.0,3978.1,9.59036894]
[1761058441262,0.00336451,3979.0,3978.1,37.79274429]
[1761058441559,0.00336451,3979.0,3978.1,29.06435829]
[1761058442166,0.2246,3978.7,3977.7,0.39455]
[1761058442365,0.2246,3978.7,3977.2,0.4831]
[1761058442366,0.2246,3978.7,3977.8,3.471]
[1761058442536,0.00336451,3979.0,3978.1,2.51376285]
[1761058442725,0.00336451,3979.0,3977.4,1.728]
[1761058442931,2.5165691,3979.0,3977.9,2.51383872]
[1761058443132,2.5165691,3979.0,3977.4,2.70838]
[1761058443133,0.00336451,3979.0,3978.1,2.51376285]
[1761058443365,0.00336451,3979.0,3978.1,3.02064285]
[1761058443543,0.00336451,3979.0,3978.1,3.49414285]
[1761058444062,0.2246,3978.9,3978.1,3.49414285]
[1761058444284,0.2246,3978.9,3977.4,0.4735]
[1761058444439,0.2246,3978.9,3977.8,2.51393752]
[1761058444641,0.2246,3978.9,3977.9,0.84540119]
[1761058444838,0.2246,3978.9,3977.0,0.2297]
[1761058445035,0.2246,3978.9,3977.0,1.698]
[1761058445244,0.2246,3977.3,3976.9,0.002]
[1761058445688,0.2246,3977.3,3977.0,3.471]
[1761058446037,0.2246,3978.0,3977.0,3.471]
[1761058446241,0.2246,3977.6,3977.0,3.8183]
[1761058446544,0.00336451,3979.0,3977.9,0.2297]
[1761058446857,0.00336451,3979.0,3978.1,4.24176285]
[1761058447057,0.2246,3978.9,3978.1,4.24176285]
[1761058447259,0.2246,3978.9,3978.1,7.71776285]
[1761058447460,0.00336451,3979.0,3978.1,8.31686285]
[1761058447643,0.00336451,3979.0,3978.1,9.99912662]
[1761058447844,0.00336451,3979.0,3978.1,10.12472662]
[1761058449050,0.3482,3978.2,3978.1,6.64872662]
[1761058449264,0.3482,3978.2,3978.1,6.14184662]
[1761058449482,0.3482,3978.2,3978.1,9.64722662]
[1761058449773,0.3482,3978.2,3978.1,10.12072662]
[1761058450141,0.3482,3978.2,3978.1,18.59924862]
[1761058450341,0.3482,3978.2,3978.1,10.37412662]
[1761058450641,0.3482,3978.2,3978.1,6.90212662]
[1761058450859,0.3482,3978.2,3978.1,14.91894462]
[1761058451241,0.3482,3978.2,3978.1,9.74994462]
[1761058451458,0.3482,3978.2,3978.1,7.23618177]
[1761058451785,0.3482,3978.2,3978.1,10.71174662]
[1761058452266,0.3482,3978.2,3978.1,11.18524662]
[1761058452465,0.3482,3978.2,3978.1,10.71174662]
[1761058453053,0.3482,3978.2,3978.1,6.04962662]
[1761058453269,0.3482,3978.2,3978.1,9.53062662]
[1761058453578,0.3482,3978.2,3978.1,9.79252662]
[1761058454178,0.3482,3978.2,3978.1,9.53962662]
[1761058454675,0.3482,3978.2,3978.1,11.70912662]
[1761058454884,0.3482,3978.2,3978.1,0.01]
[1761058455068,0.3482,3978.2,3978.1,3.488]
[1761058455246,0.517,3978.2,3978.1,0.01]
[1761058455449,3.03069966,3978.2,3978.1,0.01]
[1761058455646,3.03069966,3978.2,3978.1,0.021]
[1761058455867,1.07142735,3978.2,3978.1,0.031]
[1761058456188,0.3482,3978.2,3978.1,0.031]
[1761058457180,0.3482,3978.2,3978.1,2.54476285]
[1761058457794,0.3482,3978.2,3978.1,4.27276285]
[1761058459529,0.5198,3978.2,3978.1,0.01]
[1761058459689,0.5198,3978.2,3978.1,3.487]
[1761058460233,3.03349966,3978.2,3978.1,0.01]
[1761058460377,3.03349966,3978.2,3978.1,1.073]
[1761058460378,3.61963218,3978.2,3978.1,1.073]
[1761058460581,3.61963218,3978.2,3978.1,2.428]
[1761058460582,3.58821094,3978.2,3978.1,2.428]
[1761058461019,1.07451128,3978.2,3978.1,0.01]
[1761058461314,0.5198,3978.2,3978.1,3.486]
[1761058462310,0.5198,3978.2,3978.1,0.01]
[1761058462623,0.5198,3978.2,3978.1,3.483]
[1761058462995,0.3482,3978.2,3978.1,3.483]
[1761058463213,0.5198,3978.2,3978.1,3.484]
[1761058463383,0.3482,3978.2,3978.1,5.99776285]
[1761058463706,0.3482,3978.2,3978.1,6.00176285]
[1761058463926,0.3482,3978.2,3978.1,6.85332737]
[1761058464079,0.0964,3978.2,3978.1,8.58132737]
[1761058464298,0.0964,3978.2,3978.1,5.10332737]
[1761058464700,0.0964,3978.2,3978.1,8.58132737]
[1761058465307,0.0964,3978.2,3978.1,8.57932737]
[1761058466644,0.0964,3978.2,3978.1,8.57632737]
[1761058468033,0.0964,3978.2,3978.1,3.481]
[1761058468233,0.0464,3978.2,3978.1,5.99476285]
[1761058468836,0.0464,3978.2,3978.1,0.01]
[1761058469146,0.0464,3978.2,3978.1,5.99476285]
[1761058469944,0.0464,3978.2,3978.1,3.481]
[1761058470313,0.2157,3978.2,3978.1,0.01]
[1761058470532,0.0464,3978.2,3978.1,3.481]
[1761058470708,0.0464,3978.2,3978.1,0.01]
[1761058471119,0.0464,3978.2,3978.1,3.481]
[1761058471517,0.2157,3978.2,3978.1,3.481]
[1761058471728,0.2157,3978.2,3978.1,3.48]
[1761058471729,0.0464,3978.2,3978.1,3.48]
[1761058471930,0.2157,3978.2,3978.1,3.48]
[1761058472259,0.0464,3978.2,3978.1,3.48]
[1761058472559,0.0464,3978.2,3978.1,5.99376285]
[1761058472731,0.0464,3978.2,3978.1,6.84452549]
[1761058472929,0.0464,3978.2,3978.1,6.97012549]
[1761058474240,0.0464,3978.2,3978.1,7.22202549]
[1761058474438,0.0464,3978.2,3978.1,1.23826264]
[1761058474756,0.0464,3978.2,3978.1,0.3875]
[1761058474952,0.0464,3978.2,3978.1,6.37126285]
[1761058475314,0.0464,3978.2,3978.1,2.90126285]
[1761058475542,0.2146,3978.2,3978.1,0.01]
[1761058475754,0.2146,3978.2,3978.1,3.48]
[1761058476551,0.1646,3978.2,3978.1,3.48]
[1761058476759,2.51332059,3978.8,3978.1,3.48]
[1761058477054,0.2247,3978.9,3978.1,3.48]
[1761058477367,0.2247,3978.9,3978.2,3.47]
[1761058477730,2.54475146,3978.8,3978.3,3.47]
[1761058478034,2.54475146,3978.8,3978.4,3.47]
[1761058478035,2.5134843,3978.6,3978.4,3.47]
[1761058478244,3.01210029,3978.9,3978.1,0.012]
[1761058478435,2.51332059,3978.8,3978.2,3.47]
[1761058478646,2.51339716,3978.7,3978.2,3.47]
[1761058478837,0.1646,3978.7,3978.2,3.47]
[1761058479047,3.01209634,3978.9,3978.2,3.47]
[1761058479048,0.1646,3978.6,3978.2,3.47]
[1761058479625,0.1646,3978.6,3978.3,3.47]
[1761058480033,0.1646,3978.6,3978.1,0.012]
[1761058480261,0.1646,3978.6,3978.4,3.47]
[1761058480426,2.96837149,3978.6,3978.5,3.47]
[1761058480635,2.67810205,3978.6,3978.5,3.47]
[1761058480838,0.1646,3978.6,3978.5,3.47]
[1761058481153,2.67804694,3978.6,3978.5,3.47]
[1761058481324,2.5135158,3978.5,3978.1,0.012]
[1761058481524,0.1646,3978.5,3978.2,3.47]
[1761058481825,0.1646,3978.4,3978.2,3.47]
[1761058482233,0.1646,3978.4,3978.3,3.47]
[1761058482827,0.1646,3978.4,3978.1,0.012]
[1761058483047,0.1646,3978.3,3978.2,1.017]
[1761058483557,0.1646,3978.3,3978.1,0.012]
[1761058483718,2.6782562,3978.3,3978.2,3.47]
[1761058484162,0.1646,3978.3,3978.2,3.47]
[1761058484651,2.67823647,3978.3,3978.2,3.47]
[1761058484953,2.67823647,3978.3,3978.1,0.012]
[1761058484954,2.51369966,3978.2,3978.1,0.012]
[1761058485258,2.67829966,3978.2,3978.1,0.012]
[1761058485469,2.67829966,3978.2,3978.1,0.0103]
[1761058488654,2.7097209,3978.2,3978.1,1e-08]
[1761058488868,3.22741333,3978.2,3978.1,1e-08]
[1761058489073,3.25883457,3978.2,3978.1,1e-08]
[1761058489475,3.22741333,3978.2,3978.1,1e-08]
[1761058492585,3.25883457,3978.2,3978.1,1e-08]
[1761058493179,3.22741333,3978.2,3978.1,1e-08]
[1761058494183,0.71371367,3978.2,3978.1,1e-08]
[1761058494397,2.67669966,3978.2,3978.1,1e-08]
[1761058494770,2.7081209,3978.2,3978.1,1e-08]
[1761058496195,2.67669966,3978.2,3978.1,1e-08]
[1761058499108,2.7081209,3978.2,3978.1,1e-08]
[1761058499405,2.67669966,3978.2,3978.1,1e-08]
[1761058499606,3.19887075,3978.2,3978.1,1e-08]
[1761058500170,3.23029199,3978.2,3978.1,1e-08]
[1761058500371,3.19887075,3978.2,3978.1,1e-08]
[1761058500679,3.03587075,3978.2,3978.1,1e-08]
[1761058500876,0.001,3978.6,3978.1,0.45430001]
[1761058501108,0.001,3978.6,3978.1,2.62800001]
[1761058501310,0.1664,3978.5,3978.1,1e-08]
[1761058501510,2.54504031,3978.4,3978.1,1e-08]
[1761058501678,0.1266,3978.6,3978.1,0.45430001]
[1761058501886,0.001,3978.6,3978.3,0.1256]
[1761058502189,0.001,3978.6,3978.4,0.4543]
[1761058502544,0.001,3978.6,3978.5,2.76541011]
[1761058502715,0.001,3978.6,3978.5,2.89101011]
[1761058503021,0.001,3978.6,3978.5,3.34531011]
[1761058503235,0.001,3978.6,3978.5,3.93120229]
[1761058503387,0.001,3978.6,3978.5,5.65920229]
[1761058503592,0.001,3978.6,3978.5,6.29182698]
[1761058504130,0.33370446,3980.3,3979.3,0.25130047]
[1761058504428,0.33370446,3980.3,3980.2,0.2182]
[1761058504987,0.33370446,3980.3,3980.2,3.6862]
[1761058505401,0.33370446,3980.3,3979.8,0.2182]
[1761058505586,0.33370446,3980.3,3979.9,3.468]
[1761058505818,0.33370446,3980.3,3979.9,3.9223]
[1761058506192,2.66463656,3980.2,3979.3,0.2182]
[1761058506412,2.66463656,3980.2,3978.8,0.2182]
[1761058506413,0.03140624,3980.1,3978.9,0.4543]
[1761058506615,0.2998341,3980.2,3979.0,3.385]
[1761058506616,2.51263597,3979.9,3979.0,3.385]
[1761058506825,0.1522,3980.2,3979.1,3.468]
[1761058507016,0.33370446,3980.3,3979.0,0.4543]
[1761058507217,0.33370446,3980.3,3979.1,3.467]
[1761058507426,2.51248835,3980.2,3979.2,2.90519608]
[1761058507630,2.51251962,3980.1,3979.2,0.84643]
[1761058508130,0.33370446,3980.3,3979.3,3.9213]
[1761058508324,0.33370446,3980.3,3979.4,3.467]
[1761058508528,0.33370446,3980.3,3979.4,3.9213]
[1761058508829,0.33370446,3980.3,3979.5,0.4543]
[1761058508996,0.33370446,3980.3,3979.6,3.467]
[1761058509412,0.2307,3980.9,3979.6,3.467]
[1761058509413,0.003,3980.9,3979.6,3.467]
[1761058509614,0.003,3980.9,3979.7,2.68918]
[1761058509807,0.003,3980.9,3980.8,2.51205787]
[1761058510140,0.003,3980.9,3980.8,3.467]
[1761058510363,0.003,3980.9,3980.8,7.28249293]
[1761058513243,0.003,3980.9,3980.8,3.81549293]
[1761058513431,0.003,3980.9,3980.8,1.30343506]
[1761058513641,0.003,3980.9,3980.8,6.55715787]
[1761058514526,0.003,3980.9,3980.8,25.51639544]
[1761058514846,0.003,3980.9,3980.8,25.53639544]
[1761058515270,0.003,3980.9,3980.8,27.26439544]
[1761058515271,0.004,3980.9,3980.8,27.26439544]
[1761058517451,0.004,3980.9,3980.8,8.30515787]
[1761058517753,0.004,3980.9,3980.8,9.55668977]
[1761058519941,0.004,3980.9,3980.8,8.29165787]